[Event "Canarian Championship Seniors 2022"]
[Site "Brena Baja La Palma"]
[Date "2022.06.01"]
[Round "1.1"]
[White "Gutierrez Perez, Jose"]
[Black "Perez Aleman, Pedro Tomas"]
[Result "0-1"]
[ECO "D00"]
[WhiteElo "1918"]
[BlackElo "2047"]
[Annotator "TA"]
[PlyCount "96"]
[EventDate "2022.06.01"]
[EventType "swiss"]
[EventCountry "ESP"]
[SourceTitle "playchess.com"]
[Source "ChessBase"]
[SourceQuality "1"]
[TimeControl "5400+30"]

{[%evp 9,96,-52,-50,-59,-11,-18,-14,-27,-33,-36,-34,-42,-42,-41,-40,-36,41,21,41,18,17,0,0,0,0,0,0,0,0,0,0,0,7,0,7,0,0,0,11,10,0,0,0,0,0,0,0,0,0,0,0,-2,0,0,0,0,0,0,0,0,0,-238,-239,-266,-252,-479,-479,-982,-932,-1800,-1603,-1636,-1209,-29984,-29985,-29984,-2873,-29990,-29991,-29992,-29993,-29993,-29994,-29995,-29996,-29996,-29997,-29998,-29999]} 1. d4 {[%emt 0:00:03]} d5 {[%emt 0:00:14]} 2. f4 {[%emt 0:00:14]} Nf6 {[%emt 0:02:22]} 3. Nf3 {[%emt 0:00:19]} Bf5 {[%emt 0:04:26]} 4. e3 {[%emt 0:00:29]} e6 {[%emt 0:00:37]} 5. c3 {[%emt 0:01:29]} Bd6 {[%emt 0:02:58]} 6. Bd3 {[%emt 0:02:41] D00: 1 d4 d5: Unusual lines.} Ne4 {[%emt 0:04:00]} (6... O-O $15 {is more appropriate.}) 7. O-O $11 {[%emt 0:02:45]} O-O {[%emt 0:01:09]} 8. Qc2 {[%emt 0:00:17] The position is equal.} Nd7 {[%emt 0:04:56] [#]} 9. Nbd2 $146 {[%emt 0:00:19][%cal Rd2e4]} ({Predecessor:} 9. b3 c5 10. Nfd2 Ndf6 11. Nxe4 Nxe4 12. Nd2 Nxd2 13. Bxd2 Bxd3 14. Qxd3 Rc8 15. Rae1 {0-1 (40) Bregoszewski,L (1876)-Kedzierski,S (2067) Kolobrzeg 2008}) 9... Ndf6 {[%emt 0:02:49]} 10. Ng5 {[%emt 0:04:54]} Nxd2 {[%emt 0:12:06]} 11. Bxd2 {[%emt 0:00:23]} h6 {[%emt 0:02:48] [#] And now ...Bxd3 would win.} 12. e4 {[%emt 0:04:59][%cal Be3e4,Be4e5][%mdl 32]} Bg6 {[%emt 0:13:10]} (12... Bxe4 $15 13. Nxe4 dxe4 14. Bxe4 c5) 13. e5 $14 {[%emt 0:06:01]} hxg5 {[%emt 0:09:46]} 14. Bxg6 {[%emt 0:02:59]} ({Of course not} 14. exd6 Bxd3 15. Qxd3 Qxd6 $11) (14. exf6 {keeps more tension.} Qxf6 15. fxg5 Bxd3 16. Qxd3 Qg6 17. Qxg6 fxg6 18. Rfe1) 14... fxg6 {[%emt 0:00:18]} 15. exf6 {[%emt 0:03:12]} gxf4 {[%emt 0:03:37]} 16. Bxf4 {[%emt 0:01:04] aiming for Be5.} Bxf4 {[%emt 0:03:30]} 17. Rxf4 {[%emt 0:00:07] Raf1 is the strong threat.} Rxf6 {[%emt 0:01:41]} 18. Rxf6 {[%emt 0:02:58]} Qxf6 $11 {[%emt 0:00:11][%mdl 4096] Endgame KQR-KQR} 19. Rf1 {[%emt 0:00:08] Against Qf5} Qg5 {[%emt 0:00:39]} 20. Qe2 {[%emt 0:00:47]} Qe7 {[%emt 0:02:57]} 21. Qg4 {[%emt 0:02:06]} g5 {[%emt 0:00:51]} 22. Re1 {[%emt 0:00:18]} Re8 {[%emt 0:01:44]} 23. Re5 {[%emt 0:00:27]} Qf7 {[%emt 0:01:03]} 24. Rxg5 {[%emt 0:05:47]} Rf8 {[%emt 0:01:41][%csl Gf8][%cal Rf7f1]} 25. h3 {[%emt 0:00:13]} Qf1+ {[%emt 0:01:40]} 26. Kh2 {[%emt 0:00:07]} Qf4+ $1 {[%emt 0:00:11]} 27. Qg3 Qxg3+ {[%emt 0:00:21]} 28. Kxg3 {[%emt 0:05:45] KR-KR} Rf1 {[%emt 0:01:49]} 29. Re5 {[%emt 0:00:00]} Kf7 {[%emt 0:01:22]} 30. Re2 {[%emt 0:00:30]} Ke7 {[%emt 0:00:19]} 31. Kg4 {[%emt 0:00:00]} b6 {[%emt 0:00:20]} 32. Kg5 {[%emt 0:00:44]} c5 {[%emt 0:04:14]} 33. g4 {[%emt 0:00:35]} cxd4 {[%emt 0:02:57]} 34. cxd4 {[%emt 0:00:05]} Rd1 {[%emt 0:01:03]} 35. Rf2 $2 {[%emt 0:00:50]} (35. Kg6 $11) 35... Rxd4 $19 {[%emt 0:00:23]} 36. Kg6 {[%emt 0:00:04] [#]} e5 $1 {[%emt 0:01:18][%cal Be6e5,Be5e4,Be4e3,Be3e2][%mdl 32]} 37. Kxg7 $2 {[%emt 0:00:44]} (37. Rf7+ Kd6 38. Kxg7) 37... Rf4 {[%emt 0:03:41]} 38. Rg2 {[%emt 0:01:10]} (38. Re2 $142 e4 39. Kh6) 38... e4 {[%emt 0:00:26]} 39. g5 {[%emt 0:00:01]} e3 {[%emt 0:00:53]} 40. g6 {[%emt 0:00:22]} Re4 {[%emt 0:05:36]} 41. Rg1 {[%emt 0:07:02]} e2 {[%emt 0:00:13]} 42. Re1 {[%emt 0:00:02]} d4 {[%emt 0:00:17] ( -> ...d3)} 43. h4 {[%emt 0:00:14]} d3 {[%emt 0:00:16] Black mates.} 44. h5 {[%emt 0:00:15]} d2 {[%emt 0:00:05]} 45. Rxe2 {[%emt 0:02:26]} Rxe2 {[%emt 0:00:04]} 46. Kh8 {[%emt 0:01:24]} d1=Q {[%emt 0:00:48]} 47. h6 {[%emt 0:00:24]} Rh2 {[%emt 0:00:57]} 48. h7 {[%emt 0:00:41]} Qd8+ {[%emt 0:00:07] Weighted Error Value: White=0.63/Black=0.06 (flawless)} 0-1

[Event "Canarian Championship Seniors 2022"]
[Site "Brena Baja La Palma"]
[Date "2022.06.01"]
[Round "1.2"]
[White "Lopez Pereyra, Antonio"]
[Black "Martin Rodriguez, Jose Carlos"]
[Result "0-1"]
[ECO "B07"]
[WhiteElo "2025"]
[BlackElo "1703"]
[Annotator "TA"]
[PlyCount "78"]
[EventDate "2022.06.01"]
[EventType "swiss"]
[EventCountry "ESP"]
[SourceTitle "playchess.com"]
[Source "ChessBase"]
[SourceQuality "1"]
[TimeControl "5400+30"]

{[%evp 11,78,73,82,72,70,69,107,92,121,118,164,168,165,141,154,149,178,147,168,145,175,144,136,103,191,135,272,164,265,202,248,179,182,-138,-133,-288,-274,-364,-369,-365,-187,-174,-193,-525,-509,-657,-645,-741,-722,-759,-738,-813,-821,-817,-804,-785,-777,-704,-693,-699,-614,-708,-706,-711,-705,-858,-864,-774,-751]} 1. e4 {[%emt 0:00:32]} d6 {[%emt 0:01:08]} 2. d4 {[%emt 0:00:20]} Nf6 {[%emt 0:00:05]} 3. Nc3 {[%emt 0:00:38]} g6 {[%emt 0:02:13]} 4. Be3 {[%emt 0:01:13]} Bg7 {[%emt 0:01:12]} 5. f3 {[%emt 0:00:45]} Nc6 {[%emt 0:00:31]} 6. Qd2 {[%emt 0:02:20]} e5 {[%emt 0:03:51]} 7. Nge2 {[%emt 0:04:29][%cal Bg1e2,Be2g3,Bg3f5][%mdl 32] B07: Pirc Defence: Miscellaneous Systems.} a6 {[%emt 0:04:10]} 8. O-O-O {[%emt 0:05:32]} h6 {[%emt 0:08:29]} 9. g4 {[%emt 0:16:40] White is better.} Nd7 {[%emt 0:10:59]} 10. d5 {[%emt 0:04:51]} Na5 {[%emt 0:02:14]} (10... Ne7 $16 {is a better defense.}) 11. Ng3 $18 {[%emt 0:02:06]} b5 {[%emt 0:00:30]} 12. b3 {[%emt 0:03:26]} Nb6 {[%emt 0:11:27]} 13. h4 {[%emt 0:02:15][%cal Bh2h4,Bh4h5][%mdl 32] [#]} Nb7 $146 {[%emt 0:01:39]} ({Predecessor:} 13... Bd7 14. h5 g5 15. Nf5 Bf8 16. Ne2 Nb7 17. Neg3 f6 18. c3 Rc8 19. Kb1 a5 {1-0 (36) Mester,A (2122)-Kormos,A (2148) Budapest 2011}) 14. h5 {[%emt 0:03:21]} g5 {[%emt 0:01:06]} 15. Nf5 {[%emt 0:01:54]} Bf6 {[%emt 0:02:59]} 16. Qf2 {[%emt 0:12:08]} Bd7 {[%emt 0:05:21]} 17. Nb1 {[%emt 0:11:47]} b4 {[%emt 0:06:48]} (17... Bxf5 $16 18. gxf5 O-O) 18. Nd2 {[%emt 0:02:22]} (18. Qe1 $18) 18... Bb5 {[%emt 0:02:20]} (18... a5 $16 19. Nc4 Nxc4 20. Bxc4 Kf8) 19. Kb1 {[%emt 0:01:52]} Nd7 {[%emt 0:09:21]} (19... Bd7 {was necessary.} 20. Nc4 Nxc4 21. Bxc4 a5) 20. Bc4 {[%emt 0:05:15]} Ndc5 {[%emt 0:03:06]} 21. Rhe1 {[%emt 0:01:22]} Bd7 {[%emt 0:02:07]} 22. f4 $2 {[%emt 0:03:15]} ({White should try} 22. Rg1 $18) 22... gxf4 $17 {[%emt 0:01:34]} 23. Bxf4 {[%emt 0:00:52]} (23. Bxc5 $17 {was worth a try.} Nxc5 24. Qe2) 23... exf4 $19 {[%emt 0:00:23]} 24. e5 {[%emt 0:00:53]} dxe5 {[%emt 0:06:09]} 25. Qxf4 {[%emt 0:02:01]} Nd6 {[%emt 0:02:42]} (25... Kf8 $142 26. Rxe5 Bxe5 27. Qxe5 f6) 26. Rxe5+ {[%emt 0:04:27]} Kf8 {[%emt 0:00:11] [#] And now ...Bxf5 would win.} 27. Nf3 $2 {[%emt 0:04:26]} (27. Nxd6 {was the crucial defense.} cxd6 28. Re3) 27... Bxf5 {[%emt 0:02:17] Black is clearly winning.} 28. Rxf5 {[%emt 0:00:41]} Nxf5 {[%emt 0:02:07]} 29. Qxf5 {[%emt 0:00:02]} Qd6 {[%emt 0:01:41]} 30. Rf1 {[%emt 0:00:01]} Re8 {[%emt 0:02:40] Hoping for ...Ne4.} 31. g5 {[%emt 0:01:13]} hxg5 {[%emt 0:01:02]} 32. Nxg5 {[%emt 0:00:02] [#]} Rxh5 $1 {[%emt 0:00:58]} 33. Ne6+ {[%emt 0:01:08]} Nxe6 {[%emt 0:00:28]} 34. Qxf6 {[%emt 0:02:12]} Nd8 {[%emt 0:00:10] ...Qxf6 is the strong threat.} 35. Qf3 {[%emt 0:00:39]} Rhe5 {[%emt 0:00:38] Threatens to win with ...Re1+.} 36. Qf2 {[%emt 0:00:41] Inhibits Re1+.} Qe7 {[%emt 0:00:35] White must now prevent ...Re1+.} 37. Kb2 {[%emt 0:00:44]} Re1 {[%emt 0:00:31] ( -> ...Qe5+)} 38. Rxe1 {[%emt 0:00:29]} Qxe1 {[%emt 0:00:02]} 39. Qc5+ {[%emt 0:00:07]} Qe7 {[%emt 0:00:10] Weighted Error Value: White=0.69/Black=0.29 (precise)} 0-1

[Event "Canarian Championship Seniors 2022"]
[Site "Brena Baja La Palma"]
[Date "2022.06.01"]
[Round "1.3"]
[White "Gonzalez Ortega, Jose Miguel"]
[Black "Martin Luis, Cesar"]
[Result "0-1"]
[ECO "D03"]
[WhiteElo "1726"]
[BlackElo "2049"]
[Annotator "TA"]
[PlyCount "102"]
[EventDate "2022.06.01"]
[EventType "swiss"]
[EventCountry "ESP"]
[SourceTitle "playchess.com"]
[Source "ChessBase"]
[SourceQuality "1"]
[TimeControl "5400+30"]

{[%evp 9,102,8,12,-2,21,-10,10,0,7,0,7,5,14,8,19,14,7,0,13,22,16,-58,-51,-50,-51,-47,-44,-38,-34,-56,-69,-239,-233,-226,-213,-194,-120,-189,-189,-191,-165,-225,-203,-200,-200,-231,-214,-405,-381,-374,-327,-350,-232,-296,-283,-360,-283,-571,-568,-568,-283,-567,-564,-522,-502,-582,-581,-593,-586,-586,-579,-546,-452,-996,-717,-1268,-1249,-1205,-1217,-1618,-1501,-12832,-12828,-12833,-5928,-2075,-1280,-12844,-12844,-12845,-12845,-12846,-12846,-29986,-12846]} 1. d4 {[%emt 0:00:08]} Nf6 {[%emt 0:00:10]} 2. Nf3 {[%emt 0:01:07]} e6 {[%emt 0:01:03]} 3. Bg5 {[%emt 0:00:22]} d5 {[%emt 0:00:26]} 4. e3 {[%emt 0:00:39]} Be7 {[%emt 0:00:18]} 5. Bd3 {[%emt 0:00:40]} c5 {[%emt 0:03:28]} 6. c3 {[%emt 0:00:27] D03: 1 d4 d5 2 Nf3 Nf6 3 Bg5, including Torre Attack with early ...d5.} Qb6 {[%emt 0:00:50] ...c4 is the strong threat.} 7. Qb3 {[%emt 0:01:12] [#]} Qc7 $146 {[%emt 0:11:00] aiming for ...c4.} ({Predecessor:} 7... c4 8. Qxb6 axb6 9. Bc2 Nc6 10. O-O O-O 11. Nbd2 b5 12. a3 Nd7 13. Bxe7 Nxe7 {1-0 (70) Dalkowski,R (1893)-Topola,R (1754) Szklarska Poreba 2020}) 8. Qd1 {[%emt 0:01:16] The position is equal.} O-O {[%emt 0:00:23]} 9. O-O {[%emt 0:00:18]} Nc6 {[%emt 0:03:56]} 10. Nbd2 {[%emt 0:00:28]} e5 {[%emt 0:03:00]} 11. dxe5 {[%emt 0:03:10]} Nxe5 {[%emt 0:00:11]} 12. Nxe5 {[%emt 0:00:16]} Qxe5 {[%emt 0:00:09]} 13. Bf4 {[%emt 0:00:54]} Qe6 {[%emt 0:04:22]} 14. Re1 {[%emt 0:00:42]} Ne4 {[%emt 0:05:14]} 15. Bxe4 {[%emt 0:03:09]} (15. f3 $11 Nxd2 16. Qxd2) 15... dxe4 $15 {[%emt 0:00:13]} 16. Qc2 {[%emt 0:00:16]} f5 {[%emt 0:00:58]} 17. Qb3 {[%emt 0:00:16]} Rd8 {[%emt 0:01:03]} 18. Red1 {[%emt 0:01:05]} b6 {[%emt 0:15:39]} 19. Nc4 {[%emt 0:04:11]} Bb7 {[%emt 0:01:08] Threatens to win with ...Bd5.} 20. Nd6 $2 {[%emt 0:04:28]} (20. Ne5 Bd5 21. c4) ({White should play} 20. Na3 $15 Qf7 21. Qb5) 20... c4 $1 $19 {[%emt 0:03:38]} ({Not} 20... Qxb3 21. axb3 Bxd6 22. Bxd6 $11) 21. Nxc4 {[%emt 0:03:47]} Bd5 {[%emt 0:00:12]} 22. Rxd5 {[%emt 0:01:58]} Qxd5 {[%emt 0:00:06]} (22... Rxd5 $19 23. Bg3 Rad8) 23. h3 {[%emt 0:00:26]} (23. Bc7 $17 {is a better defense.}) 23... Rac8 {[%emt 0:06:15]} 24. Nd2 {[%emt 0:02:51]} a5 {[%emt 0:05:36][%cal Ba7a5,Ba5a4][%mdl 32]} 25. Be5 {[%emt 0:02:50] [#]} (25. a4 $142) 25... Qxb3 $1 {[%emt 0:03:04]} 26. Nxb3 {[%emt 0:00:16] [#]} a4 $1 {[%emt 0:00:09]} 27. Nd4 {[%emt 0:00:16]} Rd5 {[%emt 0:00:06]} 28. Bf4 {[%emt 0:00:56]} (28. f4 exf3 29. Nxf3) (28. f4 {was worth a try.} exf3 29. Nxf3) 28... a3 {[%emt 0:00:07]} 29. bxa3 {[%emt 0:00:42]} Rxc3 {[%emt 0:00:29]} 30. a4 {[%emt 0:01:40]} Bc5 {[%emt 0:00:47]} 31. Ne6 {[%emt 0:00:50]} Rc2 {[%emt 0:02:36]} 32. Nxc5 {[%emt 0:02:33]} Rdxc5 {[%emt 0:00:28][%mdl 4096] Endgame KRR-KRB} (32... Rcxc5 33. Rb1) ({But not} 32... Rcxc5 $2 33. Rb1 $19) 33. Bd6 $2 {[%emt 0:00:50]} (33. Bb8) 33... Rc1+ {[%emt 0:00:16]} 34. Rxc1 {[%emt 0:00:11]} Rxc1+ {[%emt 0:00:07] KR-KB} 35. Kh2 {[%emt 0:00:15]} Rc4 {[%emt 0:04:52]} 36. a3 {[%emt 0:00:39]} Rxa4 {[%emt 0:00:09]} 37. Kg3 {[%emt 0:00:17]} Kf7 {[%emt 0:03:27]} 38. Kf4 {[%emt 0:00:09]} Ke6 {[%emt 0:00:10]} 39. Bf8 {[%emt 0:01:29]} Ra7 {[%emt 0:00:36]} 40. Bb4 {[%emt 0:00:43]} b5 {[%emt 0:00:22]} 41. Bc5 {[%emt 0:00:30]} (41. f3 $142 exf3 42. gxf3) 41... Rc7 {[%emt 0:01:03]} 42. Bb4 {[%emt 0:00:23]} Rc2 {[%emt 0:00:27]} 43. Kg3 {[%emt 0:00:26]} g5 {[%emt 0:01:42]} 44. f3 {[%emt 0:00:33]} h5 {[%emt 0:01:58][%cal Bh7h5,Bh5h4][%mdl 32] ( -> ...h4+)} 45. fxe4 {[%emt 0:01:08]} h4+ {[%emt 0:00:59]} 46. Kh2 {[%emt 0:00:46]} fxe4 {[%emt 0:00:29]} 47. Kg1 {[%emt 0:00:19]} Rb2 {[%emt 0:00:38]} 48. Kf1 {[%emt 0:01:31] [#]} Rxb4 $1 {[%emt 0:00:53][%mdl 512]} 49. axb4 {[%emt 0:00:23]} Kd5 {[%emt 0:00:05]} 50. Kf2 {[%emt 0:00:12]} Kc4 {[%emt 0:00:07]} 51. g3 {[%emt 0:00:13]} Kxb4 {[%emt 0:00:06] Weighted Error Value: White=1.07/Black=0.16 (very precise)} 0-1

[Event "Canarian Championship Seniors 2022"]
[Site "Brena Baja La Palma"]
[Date "2022.06.01"]
[Round "1.4"]
[White "Machin Arbelo, Pedro Alexis"]
[Black "Macias Reyes, Jose Luis"]
[Result "1-0"]
[ECO "A06"]
[WhiteElo "1975"]
[BlackElo "1532"]
[Annotator "TA"]
[PlyCount "71"]
[EventDate "2022.06.01"]
[EventType "swiss"]
[EventCountry "ESP"]
[SourceTitle "playchess.com"]
[Source "ChessBase"]
[SourceQuality "1"]
[TimeControl "5400+30"]

{[%evp 9,71,0,-9,-1,13,0,48,25,42,0,17,4,72,68,72,50,41,44,100,95,97,75,91,79,81,45,400,350,390,404,406,413,404,412,399,404,434,321,454,467,640,631,1083,1051,1063,711,956,946,1153,1148,984,0,833,0,1013,617,859,685,1485,1364,1550,1477,1222,935]} 1. c3 {[%emt 0:00:31]} d5 {[%emt 0:01:17]} 2. Nf3 {[%emt 0:00:22]} Nf6 {[%emt 0:01:03]} 3. g3 {[%emt 0:03:20]} c6 {[%emt 0:00:48]} 4. Bg2 {[%emt 0:00:42]} Bf5 {[%emt 0:01:03]} 5. O-O {[%emt 0:01:39]} e6 {[%emt 0:01:14]} 6. d3 {[%emt 0:02:34] [#] A06: Réti Opening: 1 Nf3 d5.} Qc7 $146 {[%emt 0:05:01]} ({Predecessor:} 6... h6 7. Qb3 Qc8 8. c4 Be7 9. cxd5 exd5 10. e4 dxe4 11. Nd4 Bg6 12. dxe4 O-O {1-0 (42) Herrera Reyes,J (2319)-Jobava,B (2582) Chess.com INT 2021}) 7. Bf4 {[%emt 0:04:51]} Qb6 {[%emt 0:06:57]} (7... Bd6 $11 {was preferrable.}) 8. Qc2 {[%emt 0:09:47] White is slightly better.} h6 {[%emt 0:05:43]} 9. Nbd2 {[%emt 0:06:46]} (9. c4 $5 {[%cal Rc4d5]}) 9... Nbd7 {[%emt 0:07:12]} 10. e4 {[%emt 0:16:46]} dxe4 {[%emt 0:02:59]} (10... Bh7 $11 {keeps the balance.}) 11. dxe4 $16 {[%emt 0:01:51]} Bh7 {[%emt 0:01:08]} 12. Ne5 $36 {[%emt 0:05:43][%mdl 2048] White has the initiative.} Nxe5 {[%emt 0:07:14]} 13. Bxe5 {[%emt 0:00:08]} Be7 {[%emt 0:04:31]} (13... Nd7 $14 14. Bf4 e5) 14. Nc4 {[%emt 0:13:35]} Qc5 {[%emt 0:15:49]} 15. Qe2 {[%emt 0:10:07] [#] aiming for b4.} b5 {[%emt 0:14:37]} 16. Bxf6 {[%emt 0:07:00] White is more active.} Bxf6 {[%emt 0:01:46]} 17. e5 {[%emt 0:05:51]} Be7 {[%emt 0:05:47][%mdl 8192] Black is now going downhill.} (17... bxc4 $14 18. exf6 gxf6) 18. b4 $18 {[%emt 0:04:21]} Qxc4 {[%emt 0:08:17]} 19. Qxc4 {[%emt 0:00:10][%mdl 64] [#] Remove Defender} bxc4 {[%emt 0:00:07]} 20. Bxc6+ {[%emt 0:00:06]} Kd8 {[%emt 0:00:16] And now ...Rc8 would win.} 21. Bxa8 {[%emt 0:00:11]} Kc7 {[%emt 0:00:23]} 22. Bg2 {[%emt 0:00:24]} f6 {[%emt 0:00:42]} 23. f4 {[%emt 0:01:01][%cal Bf2f4,Bf4e5][%mdl 32]} fxe5 {[%emt 0:00:24]} (23... Bd3 $142 24. Rf2 a5) 24. fxe5 {[%emt 0:00:22]} Bg5 {[%emt 0:00:37]} 25. Rf7+ {[%emt 0:00:41]} Kb6 {[%emt 0:00:31]} 26. Rb7+ {[%emt 0:01:45]} Ka6 {[%emt 0:00:01]} 27. Rxg7 {[%emt 0:02:29] Hoping for a4.} Bd2 {[%emt 0:00:21]} 28. Rd1 {[%emt 0:00:39]} Be3+ {[%emt 0:01:10]} 29. Kh1 {[%emt 0:00:07] White threatens Rd6+ and mate.} Bd3 {[%emt 0:00:44]} 30. Bf1 {[%emt 0:00:46]} Be4+ $1 {[%emt 0:00:04]} 31. Bg2 {[%emt 0:00:04]} Bd3 {[%emt 0:00:08] A strong pair of Bishops.} 32. h3 {[%emt 0:00:22] White is clearly winning.} Rf8 {[%emt 0:00:13]} 33. Re7 {[%emt 0:00:40]} Rg8 {[%emt 0:01:20]} 34. Rxe6+ {[%emt 0:00:12]} Kb5 {[%emt 0:00:12]} 35. Bc6+ {[%emt 0:00:42]} Kb6 {[%emt 0:00:06]} 36. Be4+ {[%emt 0:00:00] Weighted Error Value: White=0.49/Black=0.70} 1-0

[Event "Canarian Championship Seniors 2022"]
[Site "Brena Baja La Palma"]
[Date "2022.06.02"]
[Round "2.1"]
[White "Perez Aleman, Pedro Tomas"]
[Black "Machin Arbelo, Pedro Alexis"]
[Result "1-0"]
[ECO "D02"]
[WhiteElo "2047"]
[BlackElo "1975"]
[Annotator "TA"]
[PlyCount "91"]
[EventDate "2022.06.01"]
[EventType "swiss"]
[EventCountry "ESP"]
[SourceTitle "playchess.com"]
[Source "ChessBase"]
[SourceQuality "1"]
[TimeControl "5400+30"]

{[%evp 18,91,39,33,17,0,0,-227,-211,-254,-258,-313,-313,-337,-320,-367,-323,-337,-345,-324,-308,-331,-288,-426,-302,-340,-322,-356,-328,-348,-296,-410,-387,-437,-433,-413,-403,-433,-407,-419,-416,-417,-393,-375,-368,-374,-385,-375,-376,-383,-376,-366,-245,-249,-234,-229,-241,-244,-241,-267,412,66,66,72,64,8,75,71,132,135,145,124,517,61,406,401]} 1. d4 {[%emt 0:00:30]} d5 {[%emt 0:02:29]} 2. Bf4 {[%emt 0:00:31]} Nf6 {[%emt 0:02:51]} 3. e3 {[%emt 0:00:17]} e6 {[%emt 0:03:14]} 4. Nd2 {[%emt 0:00:26]} Bd6 {[%emt 0:01:35]} 5. Bg3 {[%emt 0:00:12]} c5 {[%emt 0:05:14]} 6. c3 {[%emt 0:00:10]} Nc6 {[%emt 0:00:57]} 7. Ngf3 {[%emt 0:00:23]} O-O {[%emt 0:00:53]} 8. Bd3 {[%emt 0:00:46]} Re8 {[%emt 0:05:29]} 9. Ne5 {[%emt 0:00:20]} Bxe5 {[%emt 0:00:32]} 10. dxe5 {[%emt 0:01:13]} Nd7 {[%emt 0:00:13] D02: 1 d4 d5 2 Nf3 sidelines, including 2...Nf6 3 g3 and 2...Nf6 3 Bf4.} 11. f4 {[%emt 0:34:54]} (11. Qh5 g6 12. Qd1 Ncxe5 $17) 11... c4 {[%emt 0:02:36]} 12. Bxh7+ {[%emt 0:16:14]} Kxh7 $19 {[%emt 0:02:03] [#] Black is clearly better.} 13. Nf3 $146 {[%emt 0:00:33]} ({Predecessor:} 13. Qh5+ Kg8 14. Nf3 Nf8 15. O-O b5 16. Bh4 Qb6 17. Nd4 b4 18. Rf3 Ng6 19. Rg3 Nxd4 20. exd4 bxc3 21. bxc3 {½-½ (28) Gardian,A (1723)-Piekielny,P (2099) Wroclaw 2020}) 13... Rh8 {[%emt 0:06:26]} 14. h4 {[%emt 0:08:36]} Nc5 {[%emt 0:11:57]} 15. h5 {[%emt 0:08:42]} Kg8 {[%emt 0:04:06][%cal Bh7g8,Bg8f8,Bf8e7][%mdl 32]} 16. h6 {[%emt 0:01:05]} Qb6 {[%emt 0:16:27]} 17. h7+ {[%emt 0:04:03]} Kf8 $1 {[%emt 0:05:39]} (17... Rxh7 18. Rxh7 Ne4 19. Rh3 Qxb2 20. Ng5 Qxc3+ 21. Ke2 Nxg5 22. fxg5 $17) 18. Rb1 {[%emt 0:04:37]} Bd7 {[%emt 0:10:27]} (18... Ne4 $2 19. Bf2 $19) 19. Bf2 {[%emt 0:02:07]} Ne7 {[%emt 0:06:24]} 20. g4 {[%emt 0:01:18]} (20. Rh2 $142) 20... Ng6 {[%emt 0:02:49]} 21. Nd4 {[%emt 0:01:14]} Ke7 {[%emt 0:06:59]} 22. b3 {[%emt 0:05:51]} cxb3 {[%emt 0:01:25]} 23. Nxb3 {[%emt 0:03:45][%cal Oe3e4]} Ne4 {[%emt 0:00:28]} 24. Nd4 {[%emt 0:01:18]} Qc7 {[%emt 0:00:20]} 25. Qb3 {[%emt 0:00:17]} b6 {[%emt 0:00:44]} 26. Qb4+ {[%emt 0:00:40]} Qc5 {[%emt 0:00:32]} 27. Ne2 {[%emt 0:02:03]} Qxb4 {[%emt 0:00:15]} 28. cxb4 {[%emt 0:00:22]} Nf8 {[%emt 0:00:48]} 29. Rc1 {[%emt 0:01:27]} Rc8 {[%emt 0:00:11]} 30. Rxc8 {[%emt 0:00:59]} Bxc8 {[%emt 0:00:07]} 31. Nd4 {[%emt 0:00:28]} Nxf2 {[%emt 0:00:45]} 32. Kxf2 {[%emt 0:00:12]} Rxh7 {[%emt 0:00:36]} 33. Rc1 {[%emt 0:00:52]} Bd7 {[%emt 0:00:41]} 34. Kg3 {[%emt 0:00:01]} Rh8 {[%emt 0:00:47]} 35. Rc7 {[%emt 0:00:15]} Ng6 {[%emt 0:00:29]} 36. Rxa7 {[%emt 0:00:30] Strongly threatening Nc6+.} Rc8 {[%emt 0:00:19] Against Nc6+} 37. b5 {[%emt 0:00:16]} f6 {[%emt 0:00:25]} 38. f5 {[%emt 0:00:41] And now Nc6+ would win.} Ke8 $4 {[%emt 0:00:43][%mdl 8192]} 39. fxg6 $2 {[%emt 0:00:59]} (39. exf6 $18 gxf6 40. fxg6) 39... fxe5 $18 {[%emt 0:00:02][%mdl 4096] Endgame KRB-KRN} 40. Nf3 {[%emt 0:00:22] White is more active.} Rc3 {[%emt 0:00:33]} 41. Kf2 {[%emt 0:00:47]} (41. Nxe5 $6 Rxe3+ 42. Nf3 Bxb5 $11) ({White should try} 41. a4 $1 $14 Rxe3 42. Kf2) 41... Rc2+ {[%emt 0:00:22]} ({Don't play} 41... Bxb5 42. Nxe5 Rc2+ 43. Kg3 $16) (41... d4 $1 $11 {keeps the balance.} 42. a4 (42. Nxe5 $2 dxe3+ 43. Kf3 Bxb5 $19) (42. exd4 e4 $11) 42... dxe3+ 43. Ke2 Ra3) 42. Ke1 $1 $16 {[%emt 0:00:28] Hoping for Kd1.} Bxb5 {[%emt 0:00:36]} (42... d4 $142) 43. Rxg7 {[%emt 0:00:42]} Re2+ {[%emt 0:00:32]} 44. Kd1 {[%emt 0:00:01]} Rxe3 $2 {[%emt 0:00:18][%mdl 8192] [#]} (44... Rg2 $16 {is more resistant.}) 45. Ng5 $2 {[%emt 0:00:19]} (45. Ra7 $1 $18 {White wants to mate with g7.} Rd3+ 46. Ke1 Re3+ 47. Kf2 Rxf3+ 48. Kxf3) 45... Rg3 $2 {[%emt 0:01:10][%mdl 8192] [#]} (45... Bd3 $1 $14) 46. Nh7 $1 {[%emt 0:00:53] Weighted Error Value: White=0.70/Black=0.55} 1-0